fUST/lending_fUST_20251123
["ID","MTS","AMOUNT","RATE_DAILY","PERIOD"]
[394674966,1763856638887,-500.0,5e-05,2]
[394674967,1763856638898,-500.0,5e-05,2]
[394674968,1763856638910,-500.0,5e-05,2]
[394674969,1763856638920,-500.0,5e-05,2]
[394674970,1763856638931,-500.0,5e-05,2]
[394674971,1763856638941,-500.0,5e-05,2]
[394674972,1763856638951,-500.0,5e-05,2]
[394674973,1763856638961,-500.0,5e-05,2]
[394674974,1763856638971,-500.0,5e-05,2]
[394674975,1763856638981,-500.0,5e-05,2]
[394674976,1763856638991,-500.0,5e-05,2]
[394674977,1763856639005,-500.0,5e-05,2]
[394674978,1763856639016,-500.0,5e-05,2]
[394674979,1763856639026,-500.0,5e-05,2]
[394674980,1763856639035,-500.0,5e-05,2]
[394674981,1763856639045,-500.0,5e-05,2]
[394674982,1763856639055,-500.0,5e-05,2]
[394674983,1763856639065,-500.0,5e-05,2]
[394674984,1763856639075,-500.0,5e-05,2]
[394674985,1763856639085,-187.91304525,5e-05,2]
[394674986,1763856639095,-500.0,5e-05,2]
[394674987,1763856639105,-500.0,5e-05,2]
[394674988,1763856639116,-916.02421166,5e-05,2]
[394674989,1763856639125,-916.02421166,5e-05,2]
[394674990,1763856639135,-916.02421166,5e-05,2]
[394674991,1763856639145,-916.02421166,5e-05,2]
[394674992,1763856639155,-916.02421166,5e-05,2]
[394674993,1763856639164,-916.02421166,5e-05,2]
[394674994,1763856639173,-916.02421166,5e-05,2]
[394674995,1763856639183,-916.02421166,5e-05,2]
[394674996,1763856639192,-916.02421166,5e-05,2]
[394674997,1763856639205,-916.02421166,5e-05,2]
[394674998,1763856639216,-916.02421166,5e-05,2]
[394674999,1763856639225,-916.02421166,5e-05,2]
[394675000,1763856639236,-916.02421166,5e-05,2]
[394675001,1763856639246,-916.02421166,5e-05,2]
[394675002,1763856639257,-916.02421166,5e-05,2]
[394675003,1763856639267,-916.02421166,5e-05,2]
[394675004,1763856639276,-916.02421166,5e-05,2]
[394675005,1763856639286,-916.02421166,5e-05,2]
[394675006,1763856639295,-916.02421166,5e-05,2]
[394675007,1763856639304,-916.02421166,5e-05,2]
[394675008,1763856639314,-916.02421166,5e-05,2]
[394675009,1763856639323,-916.02421166,5e-05,2]
[394675010,1763856639332,-916.02421166,5e-05,2]
[394675011,1763856639342,-916.02421166,5e-05,2]
[394675012,1763856639352,-916.02421166,5e-05,2]
[394675013,1763856639362,-916.02421166,5e-05,2]
[394675014,1763856639371,-916.02421166,5e-05,2]
[394675015,1763856639381,-916.02421166,5e-05,2]
[394675016,1763856639390,-916.02421166,5e-05,2]
[394675017,1763856639399,-916.02421166,5e-05,2]
[394675018,1763856639409,-916.02421166,5e-05,2]
[394675019,1763856639418,-916.02421166,5e-05,2]
[394675020,1763856639427,-916.02421166,5e-05,2]
[394675021,1763856639437,-916.02421166,5e-05,2]
[394675022,1763856639447,-916.02421166,5e-05,2]
[394675023,1763856639456,-916.02421166,5e-05,2]
[394675024,1763856639465,-916.02421166,5e-05,2]
[394675025,1763856639475,-916.02421166,5e-05,2]
[394675026,1763856639483,-916.02421166,5e-05,2]
[394675027,1763856639493,-916.02421166,5e-05,2]
[394675028,1763856639504,-500.0,5e-05,2]
[394675029,1763856639513,-500.0,5e-05,2]
[394675030,1763856639523,-500.0,5e-05,2]
[394675031,1763856639532,-500.0,5e-05,2]
[394675032,1763856639541,-250.0,5e-05,2]
[394675033,1763856639551,-500.0,5e-05,2]
[394675034,1763856639560,-405.20502306,5e-05,2]
[394675035,1763856639570,-908.54646299,5e-05,2]
[394675036,1763856639579,-908.54646299,5e-05,2]
[394675037,1763856639588,-908.54646299,5e-05,2]
[394675038,1763856639599,-908.54646299,5e-05,2]
[394675039,1763856639609,-908.54646299,5e-05,2]
[394675040,1763856639618,-908.54646299,5e-05,2]
[394675041,1763856639628,-908.54646299,5e-05,2]
[394675042,1763856639646,-908.54646299,5e-05,2]
[394675043,1763856639661,-908.54646299,5e-05,2]
[394675044,1763856639676,-908.54646299,5e-05,2]
[394675045,1763856639688,-908.54646299,5e-05,2]
[394675046,1763856639702,-908.54646299,5e-05,2]
[394675047,1763856639716,-908.54646299,5e-05,2]
[394675048,1763856639729,-908.54646299,5e-05,2]
[394675049,1763856639744,-908.54646299,5e-05,2]
[394675050,1763856639758,-908.54646299,5e-05,2]
[394675051,1763856639774,-908.54646299,5e-05,2]
[394675052,1763856639791,-908.54646299,5e-05,2]
[394675053,1763856639804,-908.54646299,5e-05,2]
[394675054,1763856639817,-908.54646299,5e-05,2]
[394675055,1763856639830,-908.54646299,5e-05,2]
[394675056,1763856639844,-908.54646299,5e-05,2]
[394675057,1763856639857,-908.54646299,5e-05,2]
[394675058,1763856639870,-908.54646299,5e-05,2]
[394675059,1763856639881,-908.54646299,5e-05,2]
[394675060,1763856639894,-908.54646299,5e-05,2]
[394675061,1763856639906,-908.54646299,5e-05,2]
[394675062,1763856639919,-908.54646299,5e-05,2]
[394675063,1763856639933,-908.54646299,5e-05,2]
[394675064,1763856639947,-908.54646299,5e-05,2]
[394675065,1763856639961,-500.0,5e-05,2]
[394675066,1763856639976,-538.70187462,5e-05,2]
[394675067,1763856639990,-912.58444728,5e-05,2]
[394675068,1763856640002,-912.58444728,5e-05,2]
[394675069,1763856640012,-912.58444728,5e-05,2]
[394675070,1763856640024,-912.58444728,5e-05,2]
[394675071,1763856640037,-912.58444728,5e-05,2]
[394675072,1763856640051,-912.58444728,5e-05,2]
[394675073,1763856640063,-912.58444728,5e-05,2]
[394675074,1763856640074,-912.58444728,5e-05,2]
[394675075,1763856640085,-912.58444728,5e-05,2]
[394675076,1763856640097,-912.58444728,5e-05,2]
[394675077,1763856640110,-912.58444728,5e-05,2]
[394675078,1763856640121,-912.58444728,5e-05,2]
[394675079,1763856640132,-912.58444728,5e-05,2]
[394675080,1763856640143,-912.58444728,5e-05,2]
[394675081,1763856640154,-912.58444728,5e-05,2]
[394675082,1763856640166,-912.58444728,5e-05,2]
[394675083,1763856640177,-912.58444728,5e-05,2]
[394675084,1763856640192,-912.58444728,5e-05,2]
[394675085,1763856640205,-912.58444728,5e-05,2]
[394675086,1763856640217,-2152.0,5.044e-05,2]
[394675087,1763856640229,-989.0,5.044e-05,2]
[394675088,1763856640240,-630.0,5.044e-05,2]
[394675090,1763856640254,-500.0,5.059e-05,2]
[394675091,1763856640265,-500.0,5.059e-05,2]
[394675092,1763856640277,-433.38940533,5.059e-05,2]
[394675093,1763856640289,-500.0,5.059e-05,2]
[394675094,1763856640301,-2250.2808874,5.125e-05,2]
[394675095,1763856640312,-1500.0,5.208e-05,2]
[394675096,1763856640324,-150.0,5.223e-05,2]
[394675097,1763856640336,-500.0,5.274e-05,2]
[394675100,1763856640348,-2250.28088743,5.315e-05,2]
[394675102,1763856640360,-823.0,5.473e-05,2]
[394675104,1763856640372,-500.0,5.479e-05,2]
[394675106,1763856640383,-500.0,5.479e-05,2]
[394675109,1763856640395,-476.77055575,5.479e-05,2]
[394675111,1763856640407,-7418.7051063,5.479e-05,2]
[394675113,1763856640418,-500.0,5.548e-05,2]
[394675115,1763856640430,-566.82527165,5.607e-05,2]
[394675116,1763856640443,-173.4751538,5.635e-05,2]
[394675117,1763856640454,-2252.3940472,5.75e-05,2]
[394675118,1763856640466,-1568.77859409,5.756e-05,2]
[394675119,1763856640478,-500.0,5.822e-05,2]
[394675120,1763856640491,-500.0,5.981e-05,2]
[394675121,1763856640503,-501.70551518,5.981e-05,2]
[394675122,1763856640515,-1354.29487234,6.006e-05,2]
[394675123,1763856640528,-1152.0,6.02e-05,2]
[394675124,1763856640540,-377.36,6.037e-05,2]
[394675125,1763856640553,-377.36,6.037e-05,2]
[394675126,1763856640565,-377.36,6.037e-05,2]
[394675127,1763856640577,-377.36,6.037e-05,2]
[394675128,1763856640589,-377.36,6.037e-05,2]
[394675129,1763856640602,-377.36,6.037e-05,2]
[394675130,1763856640614,-377.36,6.037e-05,2]
[394675131,1763856640626,-176.98,6.037e-05,2]
[394675132,1763856640638,-500.0,6.096e-05,2]
[394675133,1763856640649,-177.0,6.125e-05,2]
[394675134,1763856640662,-603.96,6.144e-05,2]
[394675135,1763856640675,-603.96,6.15e-05,2]
[394675136,1763856640688,-195.65419235,6.37e-05,2]
[394675137,1763856640700,-976.30789558,6.453e-05,2]
[394675138,1763856640712,-300.0,6.479e-05,2]
[394675139,1763856640725,-300.0,6.479e-05,2]
[394675140,1763856640737,-300.0,6.479e-05,2]
[394675141,1763856640750,-300.0,6.479e-05,2]
[394675142,1763856640762,-300.0,6.479e-05,2]
[394675143,1763856640773,-300.0,6.479e-05,2]
[394675144,1763856640785,-300.0,6.479e-05,2]
[394675145,1763856640797,-300.0,6.479e-05,2]
[394675146,1763856640809,-300.0,6.479e-05,2]
[394675147,1763856640822,-300.0,6.479e-05,2]
[394675148,1763856640834,-300.0,6.479e-05,2]
[394675149,1763856640846,-300.0,6.479e-05,2]
[394675150,1763856640858,-300.0,6.479e-05,2]
[394675151,1763856640872,-300.0,6.479e-05,2]
[394675152,1763856640883,-300.0,6.479e-05,2]
[394675153,1763856640896,-600.0,6.479e-05,2]
[394675154,1763856640908,-1613.0,6.622e-05,2]
[394675155,1763856640919,-2252.3940472,6.654e-05,2]
[394675156,1763856640930,-8004.7635605,6.849e-05,2]
[394675157,1763856640942,-720.0,7.126e-05,2]
[394675158,1763856640954,-2258.0,7.284e-05,2]
[394675159,1763856640967,-2252.3940472,7.558e-05,2]
[394675160,1763856640979,-864.0,7.839e-05,2]
[394675161,1763856640991,-271.0,8.012e-05,2]
[394675162,1763856641003,-2152.0,8.044e-05,2]
[394675163,1763856641014,-989.0,8.044e-05,2]
[394675164,1763856641027,-630.0,8.044e-05,2]
[394675165,1763856641039,-204.0,8.125e-05,2]
[394675166,1763856641051,-500.0,8.219e-05,2]
[394675167,1763856641062,-217.41113295,8.219e-05,2]
[394675168,1763856641073,-500.0,8.219e-05,2]
[394675169,1763856641086,-2252.3940472,8.462e-05,2]
[394675170,1763856641098,-1000.0,8.623e-05,2]
[394675171,1763856641110,-500.0,8.7e-05,2]
[394675172,1763856641122,-375.378209,9.366e-05,2]
[394675173,1763856641134,-375.378209,9.366e-05,2]
[394675174,1763856641147,-375.378209,9.366e-05,2]
[394675175,1763856641159,-375.378209,9.366e-05,2]
[394675176,1763856641172,-2252.3940472,9.366e-05,2]
[394675177,1763856641185,-1000.0,9.485e-05,2]
[394675178,1763856641197,-244.0,9.485e-05,2]
[394675179,1763856641210,-2380.82363131,0.0001,2]
[394675180,1763856641223,-187.78006525,0.0001,2]
[394675181,1763856641235,-231.0,0.00010125,2]
[394675182,1763856641248,-1000.0,0.000102,2]
[394675183,1763856641259,-1000.0,0.000102,2]
[394675184,1763856641272,-1000.0,0.000102,2]
[394675185,1763856641285,-1000.0,0.000102,2]
[394675186,1763856641297,-2252.3940472,0.0001027,2]
[394675187,1763856641308,-1354.29487234,0.00010396,2]
[394675188,1763856641320,-1000.0,0.00010434,2]
[394675189,1763856641334,-492.0,0.00010434,2]
[394675190,1763856641557,-753.84,0.0001052,2]
[394675191,1763856641577,-194.72792766,0.00010548,2]
[394675192,1763856641588,-160.0,0.00010607,2]
[394675193,1763856641597,-353.21105852,0.0001061,2]
[394675194,1763856641607,-500.0,0.00010958,2]
[394675195,1763856641616,-500.0,0.00010958,3]
[394675196,1763856641625,-500.0,0.00010958,4]
[394675197,1763856641637,-500.0,0.00010958,5]
[394675198,1763856641648,-655.1909297,0.00010959,2]
[394675199,1763856641657,-1472.0967413,0.00010959,2]
[394675200,1763856641666,-151.0,0.00010959,2]
[394675201,1763856641675,-151.0,0.00010959,2]
[394675202,1763856641685,-151.0,0.00010959,2]
[394675203,1763856641694,-999.0,0.00010959,2]
[394675204,1763856641703,-151.0,0.00010959,2]
[394675205,1763856641712,-600.88972841,0.00010959,2]
[394675206,1763856641722,-600.88972841,0.00010959,2]
[394675207,1763856641731,-600.88972841,0.00010959,2]
[394675208,1763856641741,-600.88972841,0.00010959,2]
[394675209,1763856641751,-600.88972841,0.00010959,2]
[394675210,1763856641760,-600.88972841,0.00010959,2]
[394675211,1763856641769,-600.88972841,0.00010959,2]
[394675212,1763856641778,-600.88972841,0.00010959,2]
[394675213,1763856641787,-600.88972841,0.00010959,2]
[394675214,1763856641796,-600.88972841,0.00010959,2]
[394675215,1763856641805,-600.88972841,0.00010959,2]
[394675216,1763856641814,-600.88972841,0.00010959,2]
[394675217,1763856641824,-600.88972841,0.00010959,2]
[394675218,1763856641833,-600.88972841,0.00010959,2]
[394675219,1763856641843,-600.88972841,0.00010959,2]
[394675220,1763856641852,-600.88972841,0.00010959,2]
[394675221,1763856641861,-600.88972841,0.00010959,2]
[394675222,1763856641870,-600.88972841,0.00010959,2]
[394675223,1763856641879,-640.94904363,0.00010959,2]
[394675224,1763856641889,-640.94904363,0.00010959,2]
[394675225,1763856641898,-640.94904363,0.00010959,2]
[394675226,1763856641907,-640.94904363,0.00010959,2]
[394675227,1763856641916,-640.94904363,0.00010959,2]
[394675228,1763856641927,-640.94904363,0.00010959,2]
[394675229,1763856641936,-640.94904363,0.00010959,2]
[394675230,1763856641945,-640.94904363,0.00010959,2]
[394675231,1763856641954,-640.94904363,0.00010959,2]
[394675232,1763856641963,-2152.0,0.00011044,2]
[394675233,1763856641973,-989.0,0.00011044,2]
[394675234,1763856641982,-630.0,0.00011044,2]
[394675235,1763856641991,-201.93286099,0.00011096,2]
[394675236,1763856642001,-2252.3940472,0.00011174,2]
[394675237,1763856642011,-1000.0,0.00011477,2]
[394675238,1763856642021,-791.0,0.00011477,2]
[394675239,1763856642031,-209.40437684,0.00011644,2]
[394675240,1763856642041,-151.0,0.000117,2]
[394675241,1763856642050,-2252.3940472,0.00012078,2]
[394675242,1763856642059,-258.0,0.00012125,2]
[394675243,1763856642068,-217.15233878,0.00012192,2]
[394675244,1763856642077,-151.0,0.000124,2]
[394675245,1763856642087,-1000.0,0.00012625,2]
[394675246,1763856642098,-1000.0,0.00012625,2]
[394675247,1763856642107,-225.18697532,0.0001274,2]
[394675248,1763856642117,-2304.36630655,0.000129,2]
[394675249,1763856642127,-2304.36630653,0.000129,2]
[394675250,1763856642136,-2252.3940472,0.00012982,2]
[394675251,1763856642145,-151.0,0.000131,2]
[394675252,1763856642155,-330.1361761,0.00013288,2]
[394675253,1763856642165,-502.40249184,0.00013673,2]
[394675254,1763856642175,-506.24626789,0.00013673,2]
[394675255,1763856642184,-500.0,0.00013673,2]
[394675256,1763856642194,-500.0,0.00013673,2]
[394675257,1763856642205,-500.0,0.00013673,2]
[394675258,1763856642220,-500.0,0.00013673,2]
[394675259,1763856642229,-500.0,0.00013673,2]
[394675260,1763856642238,-503.61024689,0.00013673,2]
[394675261,1763856642248,-152.1244919,0.00013673,2]
[394675262,1763856642257,-500.0,0.00013673,2]
[394675263,1763856642266,-500.0,0.00013673,2]
[394675264,1763856642276,-500.0,0.00013673,2]
[394675265,1763856642287,-505.76688572,0.00013673,2]
[394675266,1763856642296,-500.0,0.00013673,2]
[394675267,1763856642306,-151.0,0.00013698,2]
[394675268,1763856642315,-151.0,0.00013698,2]
[394675269,1763856642324,-151.0,0.00013698,2]
[394675270,1763856642333,-151.0,0.00013698,2]
[394675271,1763856642343,-151.0,0.00013698,2]
[394675272,1763856642351,-151.0,0.00013698,2]
[394675273,1763856642361,-246.450942,0.00013698,2]
[394675274,1763856642370,-151.0,0.00013698,2]
[394675275,1763856642379,-151.0,0.00013698,2]
[394675276,1763856642388,-151.0,0.00013698,2]
[394675277,1763856642398,-151.0,0.00013698,2]
[394675278,1763856642407,-187.258534,0.00013698,2]
[394675279,1763856642416,-151.0,0.00013698,2]
[394675280,1763856642425,-151.0,0.00013698,2]
[394675281,1763856642435,-169.720559,0.00013698,2]
[394675282,1763856642443,-375.378209,0.00013698,2]
[394675283,1763856642452,-375.378209,0.00013698,2]
[394675284,1763856642461,-375.378209,0.00013698,2]
[394675285,1763856642471,-375.378209,0.00013698,2]
[394675286,1763856642480,-375.378209,0.00013698,2]
[394675287,1763856642489,-375.378209,0.00013698,2]
[394675288,1763856642499,-375.378209,0.00013698,2]
[394675289,1763856642509,-375.378209,0.00013698,2]
[394675290,1763856642518,-375.378209,0.00013698,2]
[394675291,1763856642528,-375.378209,0.00013698,2]
[394675292,1763856642537,-375.378209,0.00013698,2]
[394675293,1763856642547,-375.378209,0.00013698,2]
[394675294,1763856642556,-375.378209,0.00013698,2]
[394675295,1763856642565,-375.378209,0.00013698,2]
[394675296,1763856642575,-375.378209,0.00013698,2]
[394675297,1763856642584,-375.378217,0.00013698,2]
[394675298,1763856642593,-15422.18,0.00013698,2]
[394675299,1763856642602,-15422.18,0.00013698,2]
[394675300,1763856642612,-15422.18,0.00013698,2]
[394675301,1763856642621,-15422.18,0.00013698,2]
[394675302,1763856642630,-15422.18,0.00013698,2]
[394675303,1763856642639,-15422.18,0.00013698,2]
[394675304,1763856642648,-2525.25107212,0.00013698,2]
[394675310,1763856644557,-2e-08,0.00013698,2]
[394675311,1763856645485,-121.85062808,0.00013698,2]
[394675312,1763856645497,-12775.07829978,0.00013698,2]
[394675313,1763856645507,-12166.28471916,0.00013698,2]
[394675314,1763856645519,-604.0,0.00013698,2]
[394675327,1763856646857,-414.0,5.044e-05,2]
[394675328,1763856646866,-2651.89528084,0.00013698,2]
[394675329,1763856646876,-5634.10471916,0.00013698,2]
[394675330,1763856646888,-600.99999999,0.00013698,2]
[394675331,1763856737400,-342.79164897,4.038e-05,2]
[394675332,1763856741180,-297.7891571,4.038e-05,2]
[394675333,1763856747342,252.96554485,3.997e-05,2]
[394675334,1763856917895,-171.70347637,4.037e-05,2]
[394675335,1763856922009,-161.57931809,4.037e-05,2]
[394675336,1763856940438,307.64324424,3.997e-05,2]
[394675338,1763857082275,5431.34,1e-05,2]
[394675339,1763857082561,5431.34,1e-05,2]
[394675340,1763857082829,5431.34,1.1e-05,2]
[394675341,1763857083114,5431.34,1.1e-05,2]
[394675342,1763857083431,5431.34,1.1e-05,2]
[394675343,1763857083726,5431.34,1.1e-05,2]
[394675344,1763857084088,5431.34,1.2e-05,2]
[394675345,1763857084220,1200.0,3.996e-05,2]
[394675346,1763857084603,5220.01121091,1.2e-05,2]
[394675347,1763857084632,211.32878909,1.2e-05,2]
[394675348,1763857084879,5431.34,1.2e-05,2]
[394675349,1763857085040,5431.34,1.2e-05,2]
[394675350,1763857085318,5431.34,1.3e-05,2]
[394675351,1763857085592,5431.34,1.3e-05,2]
[394675352,1763857085878,5431.34,1.3e-05,2]
[394675353,1763857086154,5431.34,1.3e-05,2]
[394675354,1763857086445,5431.34,1.4e-05,2]
[394675355,1763857086734,5431.34,1.4e-05,2]
[394675356,1763857087066,1337.95121091,1.4e-05,2]
[394675357,1763857087096,4093.38878909,1.4e-05,2]
[394675358,1763857087354,5431.34,1.4e-05,2]
[394675359,1763857087696,5431.34,1.5e-05,2]
[394675360,1763857088010,5431.34,1.5e-05,2]
[394675361,1763857088283,5431.34,1.5e-05,2]
[394675362,1763857089324,5431.34,1.5e-05,2]
[394675363,1763857089648,5431.34,1.6e-05,2]
[394675364,1763857090075,5431.34,1.6e-05,2]
[394675365,1763857090362,2887.23121091,1.6e-05,2]
[394675366,1763857090391,2544.10878909,1.6e-05,2]
[394675367,1763857090634,5431.34,1.6e-05,2]
[394675368,1763857090911,5431.34,1.7e-05,2]
[394675369,1763857091210,5431.34,1.7e-05,2]
[394675370,1763857091575,5431.34,1.7e-05,2]
[394675371,1763857091905,5431.34,1.7e-05,2]
[394675372,1763857092168,5431.34,1.8e-05,2]
[394675373,1763857092490,5431.34,1.8e-05,2]
[394675374,1763857092780,4436.51121091,1.8e-05,2]
[394675375,1763857092811,994.82878909,1.8e-05,2]
[394675376,1763857093068,5431.34,1.8e-05,2]
[394675377,1763857093353,5431.34,1.9e-05,2]
[394675378,1763857093818,5431.34,1.9e-05,2]
[394675379,1763857094129,5431.34,1.9e-05,2]
[394675380,1763857094417,5431.34,1.9e-05,2]
[394675381,1763857095177,5431.34,2e-05,2]
[394675382,1763857095229,5431.34,2e-05,2]
[394675383,1763857095278,5431.34,2e-05,2]
[394675384,1763857096223,554.45121091,2e-05,2]
[394675385,1763857096252,200.0,2e-05,2]
[394675386,1763857096283,4676.88878909,2e-05,2]
[394675387,1763857096543,5431.34,2.1e-05,2]
[394675388,1763857096820,5431.34,2.1e-05,2]
[394675389,1763857097103,5431.34,2.1e-05,2]
[394675390,1763857097387,5431.34,2.1e-05,2]
[394675391,1763857097660,5431.34,2.2e-05,2]
[394675392,1763857097993,5431.34,2.2e-05,2]
[394675393,1763857098322,5431.34,2.2e-05,2]
[394675394,1763857142251,150.87,1e-05,2]
[394675395,1763857142568,150.87,1e-05,2]
[394675396,1763857143079,150.87,1.1e-05,2]
[394675397,1763857143409,150.87,1.1e-05,2]
[394675398,1763857143786,150.87,1.1e-05,2]
[394675399,1763857144067,150.87,1.2e-05,2]
[394675400,1763857144371,-456.97894695,3.916e-05,2]
[394675401,1763857144413,150.87,1.2e-05,2]
[394675402,1763857144725,150.87,1.3e-05,2]
[394675403,1763857145051,150.87,1.3e-05,2]
[394675404,1763857145470,150.87,1.3e-05,2]
[394675405,1763857145795,150.87,1.4e-05,2]
[394675406,1763857146117,150.87,1.4e-05,2]
[394675407,1763857146431,150.87,1.4e-05,2]
[394675408,1763857146961,150.87,1.5e-05,2]
[394675409,1763857147544,-252.45609426,3.916e-05,2]
[394675410,1763857147690,150.87,1.5e-05,2]
[394675411,1763857148063,40.68121091,1.5e-05,2]
[394675412,1763857148098,110.18878909,1.5e-05,2]
[394675413,1763857148392,150.87,1.6e-05,2]
[394675414,1763857148725,150.87,1.6e-05,2]
[394675415,1763857149205,150.87,1.6e-05,2]
[394675416,1763857149262,150.87,1.7e-05,2]
[394675417,1763857149582,-300.0,3.916e-05,2]
[394675418,1763857149624,150.87,1.7e-05,2]
[394675419,1763857149878,150.87,1.8e-05,2]
[394675420,1763857150161,150.87,1.8e-05,2]
[394675421,1763857150443,150.87,1.8e-05,2]
[394675422,1763857150742,150.87,1.9e-05,2]
[394675423,1763857151066,150.87,1.9e-05,2]
[394675424,1763857151358,150.87,1.9e-05,2]
[394675425,1763857151679,150.87,2e-05,2]
[394675426,1763857151987,150.87,2e-05,2]
[394675427,1763857152273,150.87,2e-05,2]
[394675428,1763857152550,150.87,2.1e-05,2]
[394675429,1763857152903,150.87,2.1e-05,2]
[394675430,1763857153211,150.87,2.1e-05,2]
[394675431,1763857153697,150.87,2.2e-05,2]
[394675432,1763857154109,150.87,2.2e-05,2]
[394675434,1763857188084,-167.07545631,3.916e-05,2]
[394675435,1763857201954,150.85,1e-05,2]
[394675436,1763857212352,9000.0,0.0001333,9]
[394675437,1763857321533,155.15,1e-05,2]
[394675438,1763857321818,155.15,1.1e-05,2]
[394675439,1763857322129,155.15,1.1e-05,2]
[394675440,1763857322413,155.15,1.2e-05,2]
[394675441,1763857322773,155.15,1.3e-05,2]
[394675442,1763857323045,155.15,1.3e-05,2]
[394675443,1763857323542,155.15,1.4e-05,2]
[394675444,1763857323768,155.15,1.5e-05,2]
[394675445,1763857324151,155.15,1.6e-05,2]
[394675446,1763857324443,155.15,1.6e-05,2]
[394675447,1763857324768,155.15,1.7e-05,2]
[394675448,1763857325044,155.15,1.8e-05,2]
[394675449,1763857325343,155.15,1.8e-05,2]
[394675450,1763857325672,155.15,1.9e-05,2]
[394675451,1763857325994,155.15,2e-05,2]
[394675452,1763857326277,155.15,2e-05,2]
[394675453,1763857326563,155.15,2.1e-05,2]
[394675454,1763857326862,155.15,2.2e-05,2]
[394675455,1763857327143,155.15,2.3e-05,2]
[394675456,1763857361539,161.0,5.5e-07,2]
[394675457,1763857362560,161.0,5.5e-07,2]
[394675458,1763857363636,161.0,5.5e-07,2]
[394675459,1763857364739,161.0,5.5e-07,2]
[394675460,1763857382066,161.04,1e-05,2]
[394675461,1763857382367,161.04,1e-05,2]
[394675462,1763857382674,161.04,1.1e-05,2]
[394675463,1763857382985,161.04,1.1e-05,2]
[394675464,1763857383306,161.04,1.1e-05,2]
[394675465,1763857383627,161.04,1.1e-05,2]
[394675466,1763857383959,161.04,1.2e-05,2]
[394675467,1763857384242,161.04,1.2e-05,2]
[394675468,1763857384780,161.04,1.2e-05,2]
[394675469,1763857384826,161.04,1.2e-05,2]
[394675470,1763857385106,161.04,1.3e-05,2]
[394675471,1763857385526,161.04,1.3e-05,2]
[394675472,1763857385659,161.04,1.3e-05,2]
[394675473,1763857386062,161.04,1.3e-05,2]
[394675474,1763857386340,161.04,1.4e-05,2]
[394675475,1763857386635,161.04,1.4e-05,2]
[394675476,1763857386905,161.04,1.4e-05,2]
[394675477,1763857387174,161.04,1.4e-05,2]
[394675478,1763857387455,161.04,1.5e-05,2]
[394675479,1763857387726,161.04,1.5e-05,2]
[394675480,1763857388006,161.04,1.5e-05,2]
[394675481,1763857388274,161.04,1.5e-05,2]
[394675482,1763857388556,161.04,1.6e-05,2]
[394675483,1763857388821,161.04,1.6e-05,2]
[394675484,1763857389191,161.04,1.6e-05,2]
[394675485,1763857389426,161.04,1.6e-05,2]
[394675486,1763857389730,161.04,1.7e-05,2]
[394675487,1763857390070,161.04,1.7e-05,2]
[394675488,1763857390357,161.04,1.7e-05,2]
[394675489,1763857390680,161.04,1.7e-05,2]
[394675490,1763857390971,161.04,1.8e-05,2]
[394675491,1763857391250,161.04,1.8e-05,2]
[394675492,1763857391670,161.04,1.8e-05,2]
[394675493,1763857391939,161.04,1.8e-05,2]
[394675494,1763857392212,161.04,1.9e-05,2]
[394675495,1763857392497,161.04,1.9e-05,2]